[Event "Blixt-SM 2021"]
[Site "Elite Hotel Marina Plaza, Kungstorget 6, Helsingborg, Sweden"]
[Date "2021.11.14"]
[Round "8.4"]
[White "Nilsson, Patrik"]
[Black "Wellevit, Tomas"]
[Result "1-0"]
[TimeControl "3 minutes + 2 seconds per move."]
[WhiteFideId "1708171"]
[BlackFideId "1731963"]
[WhiteElo "2143"]
[BlackElo "2113"]

1. d4 {[%clk 00:03:02]} {[%emt 00:00:02]} d5 {[%clk 00:03:04]} 2. Bf4 {[%clk
00:03:03]} Nf6 {[%clk 00:03:04]} {[%emt 00:00:01]} 3. e3 {[%clk 00:03:04]} e6
{[%clk 00:03:04]} {[%emt 00:00:04]} 4. Nd2 {[%clk 00:03:05]} {[%emt 00:00:01]}
Bd6 {[%clk 00:03:05]} 5. Bg3 {[%clk 00:03:06]} O-O {[%clk 00:03:04]} {[%emt
00:00:05]} 6. Bd3 {[%clk 00:03:05]} {[%emt 00:00:03]} c5 {[%clk 00:03:05]}
{[%emt 00:00:01]} 7. c3 {[%clk 00:03:06]} {[%emt 00:00:01]} Nc6 {[%clk
00:03:05]} {[%emt 00:00:02]} 8. Ngf3 {[%clk 00:03:05]} {[%emt 00:00:03]} b6
{[%clk 00:03:04]} {[%emt 00:00:03]} 9. Qe2 {[%clk 00:03:06]} {[%emt 00:00:02]}
Bb7 {[%clk 00:03:05]} 10. Rd1 {[%clk 00:03:07]} Re8 {[%clk 00:02:59]} {[%emt
00:00:08]} 11. Ne5 {[%clk 00:02:55]} {[%emt 00:00:14]} Qc7 {[%clk 00:02:56]}
{[%emt 00:00:06]} 12. f4 {[%clk 00:02:56]} {[%emt 00:00:01]} Be7 {[%clk
00:02:50]} {[%emt 00:00:07]} 13. f5 {[%clk 00:02:40]} {[%emt 00:00:18]} Nxe5
{[%clk 00:02:47]} {[%emt 00:00:05]} 14. Bxe5 {[%clk 00:02:39]} {[%emt
00:00:02]} Qd7 {[%clk 00:02:38]} {[%emt 00:00:11]} 15. fxe6 {[%clk 00:02:40]}
{[%emt 00:00:02]} Qxe6 {[%clk 00:02:32]} {[%emt 00:00:06]} 16. O-O {[%clk
00:02:25]} {[%emt 00:00:18]} Ne4 {[%clk 00:02:30]} {[%emt 00:00:03]} 17. Nxe4
{[%clk 00:02:14]} {[%emt 00:00:13]} dxe4 {[%clk 00:02:31]} {[%emt 00:00:01]} 18.
Bc4 {[%clk 00:02:13]} {[%emt 00:00:04]} Bd5 {[%clk 00:02:28]} {[%emt 00:00:05]}
19. b3 {[%clk 00:01:51]} {[%emt 00:00:24]} f6 {[%clk 00:02:25]} {[%emt
00:00:05]} 20. Bg3 {[%clk 00:01:52]} Rad8 {[%clk 00:02:11]} {[%emt 00:00:17]}
21. Bxd5 {[%clk 00:01:51]} {[%emt 00:00:03]} Qxd5 {[%clk 00:02:10]} {[%emt
00:00:02]} 22. c4 {[%clk 00:01:52]} Qg5 {[%clk 00:02:07]} {[%emt 00:00:04]} 23.
d5 {[%clk 00:01:52]} {[%emt 00:00:03]} Bd6 {[%clk 00:02:07]} {[%emt 00:00:02]}
24. Bxd6 {[%clk 00:01:49]} {[%emt 00:00:06]} Rxd6 {[%clk 00:02:08]} 25. Qf2
{[%clk 00:01:49]} Re5 {[%clk 00:02:05]} {[%emt 00:00:05]} 26. Qf4 {[%clk
00:01:48]} {[%emt 00:00:04]} Qxf4 {[%clk 00:01:57]} {[%emt 00:00:10]} 27. Rxf4
{[%clk 00:01:48]} {[%emt 00:00:01]} g6 {[%clk 00:01:54]} {[%emt 00:00:05]} 28.
Rdf1 {[%clk 00:01:49]} {[%emt 00:00:02]} f5 {[%clk 00:01:54]} {[%emt 00:00:03]}
29. g4 {[%clk 00:01:46]} {[%emt 00:00:04]} fxg4 {[%clk 00:01:39]} {[%emt
00:00:17]} 30. Rf8+ {[%clk 00:01:43]} {[%emt 00:00:05]} Kg7 {[%clk 00:01:40]}
31. R1f7+ {[%clk 00:01:44]} {[%emt 00:00:02]} Kh6 {[%clk 00:01:41]} 32. Rxa7
{[%clk 00:01:45]} {[%emt 00:00:01]} Rf5 {[%clk 00:01:32]} {[%emt 00:00:11]} 33.
Rff7 {[%clk 00:01:27]} {[%emt 00:00:20]} Rxf7 {[%clk 00:01:29]} {[%emt
00:00:05]} 34. Rxf7 {[%clk 00:01:28]} {[%emt 00:00:01]} g5 {[%clk 00:01:27]}
{[%emt 00:00:04]} 35. Re7 {[%clk 00:01:24]} {[%emt 00:00:06]} Kg6 {[%clk
00:01:27]} {[%emt 00:00:02]} 36. Rxe4 {[%clk 00:01:24]} {[%emt 00:00:03]} Kf5
{[%clk 00:01:27]} {[%emt 00:00:02]} 37. Re8 {[%clk 00:01:25]} h5 {[%clk
00:01:28]} 38. e4+ {[%clk 00:01:23]} {[%emt 00:00:04]} Kf4 {[%clk 00:01:26]}
{[%emt 00:00:03]} 39. e5 {[%clk 00:01:24]} Rd7 {[%clk 00:01:28]} {[%emt
00:00:01]} 40. e6 {[%clk 00:01:25]} {[%emt 00:00:01]} Rg7 {[%clk 00:01:18]}
{[%emt 00:00:12]} 41. d6 {[%clk 00:01:24]} {[%emt 00:00:03]} Ke5 {[%clk
00:01:19]} {[%emt 00:00:01]} 42. d7 {[%clk 00:01:23]} {[%emt 00:00:03]} 1-0

[Event "Blixt-SM 2021"]
[Site "Elite Hotel Marina Plaza, Kungstorget 6, Helsingborg, Sweden"]
[Date "2021.11.14"]
[Round "10.2"]
[White "Kucuksari, Kaan"]
[Black "Jepson, Christian"]
[Result "1-0"]
[TimeControl "3 minutes + 2 seconds per move."]
[WhiteTitle "FM"]
[BlackTitle "IM"]
[WhiteFideId "6380166"]
[BlackFideId "1701185"]
[WhiteElo "2301"]
[BlackElo "2412"]

1. d4 {[%clk 00:03:03]} {[%emt 00:00:03]} d6 {[%clk 00:03:04]} 2. Nf3 {[%clk
00:03:04]} Nf6 {[%clk 00:03:05]} 3. c4 {[%clk 00:03:05]} g6 {[%clk 00:03:06]}
{[%emt 00:00:02]} 4. Nc3 {[%clk 00:03:07]} Bf5 {[%clk 00:03:07]} 5. g3 {[%clk
00:03:08]} Ne4 {[%clk 00:03:09]} 6. Bg2 {[%clk 00:02:46]} {[%emt 00:00:25]}
Nxc3 {[%clk 00:03:09]} 7. bxc3 {[%clk 00:02:47]} {[%emt 00:00:01]} Be4 {[%clk
00:03:10]} {[%emt 00:00:01]} 8. h4 {[%clk 00:02:14]} {[%emt 00:00:35]} Bg7
{[%clk 00:03:08]} {[%emt 00:00:04]} 9. h5 {[%clk 00:02:15]} {[%emt 00:00:02]}
c5 {[%clk 00:03:00]} {[%emt 00:00:09]} 10. h6 {[%clk 00:01:51]} {[%emt
00:00:27]} Bf6 {[%clk 00:02:53]} {[%emt 00:00:09]} 11. O-O {[%clk 00:01:32]}
{[%emt 00:00:20]} Nc6 {[%clk 00:02:47]} {[%emt 00:00:08]} 12. Be3 {[%clk
00:01:10]} {[%emt 00:00:23]} b6 {[%clk 00:02:41]} {[%emt 00:00:09]} 13. d5
{[%clk 00:00:49]} {[%emt 00:00:23]} Na5 {[%clk 00:02:37]} {[%emt 00:00:07]} 14.
Ne5 {[%clk 00:00:40]} {[%emt 00:00:11]} Bxe5 {[%clk 00:02:17]} {[%emt
00:00:22]} 15. Bxe4 {[%clk 00:00:39]} {[%emt 00:00:02]} O-O {[%clk 00:02:12]}
{[%emt 00:00:07]} 16. Qd3 {[%clk 00:00:32]} {[%emt 00:00:10]} Qd7 {[%clk
00:02:08]} {[%emt 00:00:05]} 17. a4 {[%clk 00:00:31]} {[%emt 00:00:03]} Qg4
{[%clk 00:02:01]} {[%emt 00:00:10]} 18. Kg2 {[%clk 00:00:29]} {[%emt 00:00:04]}
f5 {[%clk 00:01:58]} {[%emt 00:00:05]} 19. Bf3 {[%clk 00:00:16]} {[%emt
00:00:15]} Qxc4 {[%clk 00:01:59]} 20. Qd1 {[%clk 00:00:17]} f4 {[%clk
00:01:35]} {[%emt 00:00:25]} 21. Bd2 {[%clk 00:00:18]} fxg3 {[%clk 00:01:27]}
{[%emt 00:00:10]} 22. fxg3 {[%clk 00:00:17]} {[%emt 00:00:03]} Nb3 {[%clk
00:01:02]} {[%emt 00:00:27]} 23. Rb1 {[%clk 00:00:13]} {[%emt 00:00:06]} Nxd2
{[%clk 00:01:02]} {[%emt 00:00:02]} 24. Qxd2 {[%clk 00:00:15]} {[%emt
00:00:01]} Qxc3 {[%clk 00:00:56]} {[%emt 00:00:07]} 25. Qg5 {[%clk 00:00:16]}
Bf6 {[%clk 00:00:50]} {[%emt 00:00:08]} 26. Qg4 {[%clk 00:00:17]} Qe5 {[%clk
00:00:52]} 27. Rh1 {[%clk 00:00:13]} {[%emt 00:00:06]} Rf7 {[%clk 00:00:43]}
{[%emt 00:00:11]} 28. Rbc1 {[%clk 00:00:14]} Raf8 {[%clk 00:00:33]} {[%emt
00:00:12]} 29. Rc4 {[%clk 00:00:15]} Qg5 {[%clk 00:00:32]} {[%emt 00:00:03]} 30.
Qe6 {[%emt 00:00:02]} Be5 {[%clk 00:00:31]} {[%emt 00:00:02]} 31. Rg4 {[%clk
00:00:16]} {[%emt 00:00:01]} Qf5 {[%clk 00:00:29]} {[%emt 00:00:04]} 32. Qxf5
{[%clk 00:00:06]} {[%emt 00:00:12]} Rxf5 {[%clk 00:00:30]} {[%emt 00:00:01]} 33.
Rb1 {[%clk 00:00:06]} {[%emt 00:00:02]} Rh5 {[%clk 00:00:25]} {[%emt 00:00:07]}
34. a5 {[%clk 00:00:06]} {[%emt 00:00:03]} bxa5 {[%emt 00:00:08]} 35. Rb7
{[%clk 00:00:07]} Bf6 {[%clk 00:00:14]} {[%emt 00:00:07]} 36. Ra4 {[%clk
00:00:07]} {[%emt 00:00:02]} Rxh6 {[%clk 00:00:15]} 37. Rxa5 {[%clk 00:00:08]}
Kf7 {[%clk 00:00:10]} {[%emt 00:00:07]} 38. Raxa7 {[%clk 00:00:09]} {[%emt
00:00:02]} Rd8 {[%clk 00:00:10]} {[%emt 00:00:02]} 39. Ra4 {[%clk 00:00:09]}
{[%emt 00:00:01]} g5 {[%clk 00:00:11]} {[%emt 00:00:01]} 40. Re4 {[%clk
00:00:10]} {[%emt 00:00:02]} Be5 {[%clk 00:00:11]} {[%emt 00:00:02]} 41. Bg4
{[%clk 00:00:10]} Rf6 {[%clk 00:00:11]} {[%emt 00:00:02]} 42. Be6+ {[%clk
00:00:11]} {[%emt 00:00:01]} Kf8 {[%clk 00:00:12]} {[%emt 00:00:02]} 43. Rg4
{[%clk 00:00:07]} {[%emt 00:00:05]} h6 {[%clk 00:00:13]} {[%emt 00:00:01]} 44.
e3 {[%clk 00:00:08]} {[%emt 00:00:02]} Ra8 {[%clk 00:00:12]} {[%emt 00:00:03]}
45. Re4 {[%clk 00:00:05]} {[%emt 00:00:05]} Ra2+ {[%clk 00:00:12]} 46. Kh3
{[%clk 00:00:06]} h5 {[%clk 00:00:13]} {[%emt 00:00:01]} 47. Rb8+ {[%clk
00:00:07]} Kg7 {[%clk 00:00:14]} 48. Rg8+ {[%clk 00:00:08]} {[%emt 00:00:01]}
Kh6 {[%clk 00:00:15]} {[%emt 00:00:02]} 49. Rh8+ {[%clk 00:00:08]} Kg6 {[%clk
00:00:15]} {[%emt 00:00:02]} 50. Rg8+ {[%clk 00:00:09]} Kh7 {[%clk 00:00:15]}
{[%emt 00:00:03]} 51. Rxg5 {[%clk 00:00:10]} {[%emt 00:00:01]} Rff2 {[%clk
00:00:15]} {[%emt 00:00:03]} 52. Rxh5+ {[%clk 00:00:08]} {[%emt 00:00:04]} Kg6
{[%clk 00:00:16]} 53. Kg4 {[%clk 00:00:09]} {[%emt 00:00:01]} Rg2 {[%clk
00:00:15]} {[%emt 00:00:03]} 54. Rg5+ {[%clk 00:00:10]} Kh6 {[%clk 00:00:15]}
{[%emt 00:00:03]} 55. Rh5+ {[%clk 00:00:10]} Kg6 {[%clk 00:00:16]} 56. Rg5+
{[%clk 00:00:11]} Kh6 {[%clk 00:00:17]} {[%emt 00:00:01]} 57. Kh4 {[%clk
00:00:08]} {[%emt 00:00:04]} Rh2+ {[%clk 00:00:16]} {[%emt 00:00:04]} 58. Kg4
{[%clk 00:00:10]} Rag2 {[%clk 00:00:16]} {[%emt 00:00:02]} 59. Rexe5 {[%clk
00:00:06]} {[%emt 00:00:06]} dxe5 {[%clk 00:00:16]} {[%emt 00:00:02]} 60. Rxe5
{[%clk 00:00:07]} {[%emt 00:00:01]} Kg7 {[%clk 00:00:17]} 61. Rf5 {[%clk
00:00:08]} {[%emt 00:00:01]} Rf2 {[%clk 00:00:18]} {[%emt 00:00:01]} 62. Rg5+
{[%clk 00:00:08]} {[%emt 00:00:02]} Kf6 {[%clk 00:00:19]} 63. Rg8 {[%clk
00:00:09]} Ke5 {[%emt 00:00:02]} 64. Re8 {[%clk 00:00:10]} Kd6 {[%clk
00:00:21]} {[%emt 00:00:02]} 65. Rd8+ {[%clk 00:00:11]} Ke5 {[%clk 00:00:23]}
66. Rd7 {[%clk 00:00:12]} Kf6 {[%clk 00:00:24]} 67. Rc7 {[%clk 00:00:13]}
{[%emt 00:00:01]} Rc2 {[%clk 00:00:24]} {[%emt 00:00:02]} 68. Rc8 {[%clk
00:00:12]} {[%emt 00:00:03]} Rc4+ {[%clk 00:00:25]} 69. Kf3 {[%clk 00:00:13]}
Rc3 {[%clk 00:00:26]} {[%emt 00:00:01]} 70. Rf8+ {[%clk 00:00:17]} {[%emt
00:00:10]} Ke5 {[%clk 00:00:22]} {[%emt 00:00:09]} 71. Re8 {[%clk 00:00:18]}
{[%emt 00:00:01]} Rh7 {[%clk 00:00:23]} 72. g4 {[%clk 00:00:14]} {[%emt
00:00:06]} Rg7 {[%clk 00:00:25]} 73. Rc8 {[%clk 00:00:07]} {[%emt 00:00:09]} c4
{[%clk 00:00:26]} 74. Ke2 {[%clk 00:00:08]} Ke4 {[%clk 00:00:23]} {[%emt
00:00:05]} 75. Kd2 {[%clk 00:00:06]} {[%emt 00:00:03]} Rd3+ {[%clk 00:00:24]}
{[%emt 00:00:02]} 76. Kc2 {[%clk 00:00:07]} Rxe3 {[%clk 00:00:24]} {[%emt
00:00:02]} 77. Rxc4+ {[%clk 00:00:08]} Ke5 {[%clk 00:00:25]} {[%emt 00:00:01]}
78. Rc7 {[%clk 00:00:09]} Re4 {[%clk 00:00:24]} {[%emt 00:00:03]} 79. Kd3
{[%clk 00:00:10]} {[%emt 00:00:01]} Rd4+ {[%clk 00:00:25]} {[%emt 00:00:01]} 80.
Ke3 {[%clk 00:00:11]} Rxd5 {[%clk 00:00:26]} {[%emt 00:00:02]} 81. Bxd5 Kxd5
{[%clk 00:00:27]} 82. Rd7+ {[%emt 00:00:03]} Ke6 {[%clk 00:00:28]} 83. Rd4
{[%clk 00:00:12]} Ke5 {[%clk 00:00:29]} {[%emt 00:00:02]} 84. Re4+ {[%clk
00:00:13]} {[%emt 00:00:01]} Kf6 {[%clk 00:00:30]} 85. Rf4+ {[%clk 00:00:13]}
Ke5 {[%clk 00:00:31]} {[%emt 00:00:01]} 86. Rf5+ {[%clk 00:00:14]} {[%emt
00:00:02]} Ke6 {[%clk 00:00:32]} 87. Kf4 {[%clk 00:00:13]} {[%emt 00:00:03]}
Rg8 {[%clk 00:00:33]} {[%emt 00:00:02]} 88. g5 {[%clk 00:00:12]} {[%emt
00:00:02]} Rg7 {[%clk 00:00:32]} {[%emt 00:00:03]} 89. Rf8 {[%clk 00:00:12]}
{[%emt 00:00:01]} Kd7 {[%clk 00:00:24]} {[%emt 00:00:11]} 90. Kf5 {[%clk
00:00:11]} {[%emt 00:00:02]} Kd6 {[%clk 00:00:21]} {[%emt 00:00:05]} 91. Rd8+
{[%clk 00:00:11]} {[%emt 00:00:02]} Kc7 {[%clk 00:00:22]} {[%emt 00:00:01]} 92.
Rd1 {[%clk 00:00:12]} Rf7+ {[%clk 00:00:19]} {[%emt 00:00:05]} 93. Ke6 {[%clk
00:00:12]} {[%emt 00:00:02]} Rg7 {[%clk 00:00:20]} 94. Kf5 {[%clk 00:00:09]}
{[%emt 00:00:05]} Kc6 {[%clk 00:00:20]} {[%emt 00:00:02]} 95. Rd2 {[%emt
00:00:01]} Kc7 96. g6 {[%clk 00:00:10]} Kc8 {[%clk 00:00:20]} {[%emt 00:00:04]}
97. Rd1 {[%clk 00:00:06]} {[%emt 00:00:06]} Kc7 {[%clk 00:00:21]} {[%emt
00:00:01]} 98. Rd3 {[%clk 00:00:06]} Kc8 {[%emt 00:00:02]} 99. Rh3 {[%clk
00:00:06]} Kd7 {[%clk 00:00:23]} {[%emt 00:00:02]} 100. Rh8 {[%clk 00:00:07]}
{[%emt 00:00:01]} Kd6 {[%clk 00:00:21]} {[%emt 00:00:04]} 101. Kg5 {[%clk
00:00:05]} {[%emt 00:00:03]} e5 {[%clk 00:00:18]} {[%emt 00:00:06]} 102. Kf6
{[%clk 00:00:06]} Rd7 {[%clk 00:00:19]} {[%emt 00:00:02]} 103. g7 {[%clk
00:00:07]} {[%emt 00:00:01]} Kd5 {[%emt 00:00:07]} 1-0